[Event "*** Titled Tuesday Blitz"]
[Site "Chess.com"]
[Date "2020.02.04"]
[Round "1"]
[White "victormago"]
[Black "alishersuleymenov"]
[Result "0-1"]
[WhiteElo "2423"]
[BlackElo "2795"]
[TimeControl "180+2"]
[EndTime "13:07:46 PST"]
[Termination "alishersuleymenov won by resignation"]

1. d4 {[%clk 0:03:01.1]} 1... Nf6 {[%clk 0:02:58.8]} 2. c4 {[%clk 0:03:01.9]}
2... g6 {[%clk 0:02:59.7]} 3. Nc3 {[%clk 0:03:03.2]} 3... Bg7 {[%clk 0:03:01.1]}
4. e4 {[%clk 0:03:03.6]} 4... O-O {[%clk 0:03:02.3]} 5. Be2 {[%clk 0:03:04.9]}
5... d6 {[%clk 0:03:02]} 6. Bg5 {[%clk 0:03:05.9]} 6... Na6 {[%clk 0:03:02.9]}
7. Qd2 {[%clk 0:03:05.2]} 7... c5 {[%clk 0:02:58.2]} 8. d5 {[%clk 0:03:05.6]}
8... e6 {[%clk 0:02:59.2]} 9. f3 {[%clk 0:03:01.4]} 9... exd5 {[%clk 0:02:57.6]}
10. cxd5 {[%clk 0:03:02.5]} 10... Nc7 {[%clk 0:02:58.8]} 11. a4 {[%clk
0:03:03.2]} 11... a6 {[%clk 0:02:59.2]} 12. g4 {[%clk 0:02:59.8]} 12... Rb8
{[%clk 0:03:00]} 13. h4 {[%clk 0:02:54.4]} 13... b5 {[%clk 0:02:55.3]} 14. axb5
{[%clk 0:02:55.5]} 14... axb5 {[%clk 0:02:57.2]} 15. h5 {[%clk 0:02:57]} 15...
b4 {[%clk 0:02:55.1]} 16. Nd1 {[%clk 0:02:57.4]} 16... Nb5 {[%clk 0:02:55.6]}
17. Bxb5 {[%clk 0:02:56.7]} 17... Rxb5 {[%clk 0:02:56.5]} 18. hxg6 {[%clk
0:02:57.2]} 18... fxg6 {[%clk 0:02:58.2]} 19. Ne2 {[%clk 0:02:53.9]} 19... Qe8
{[%clk 0:02:50.1]} 20. O-O {[%clk 0:02:53.1]} 20... h5 {[%clk 0:02:33.1]} 21.
gxh5 {[%clk 0:02:43.9]} 21... Nxh5 {[%clk 0:02:34.1]} 22. Ne3 {[%clk 0:02:39]}
22... Bh3 {[%clk 0:02:32.8]} 23. Rf2 {[%clk 0:02:38.6]} 23... b3 {[%clk
0:01:21]} 24. Nc4 {[%clk 0:02:27.4]} 24... Rb4 {[%clk 0:01:22.1]} 25. Rc1 {[%clk
0:02:17.3]} 25... Bd7 {[%clk 0:00:51.6]} 26. Nxd6 {[%clk 0:02:05.8]} 26... Qe5
{[%clk 0:00:42.8]} 27. Nc4 {[%clk 0:02:06.1]} 27... Qb8 {[%clk 0:00:29.6]} 28.
d6 {[%clk 0:01:53.6]} 28... Bb5 {[%clk 0:00:30.6]} 29. Qd5+ {[%clk 0:01:53.4]}
29... Kh7 {[%clk 0:00:29.3]} 30. Qxc5 {[%clk 0:01:52.7]} 30... Rxc4 {[%clk
0:00:27.9]} 31. Rxc4 {[%clk 0:01:53.4]} 31... Bxc4 {[%clk 0:00:29.8]} 32. Qxc4
{[%clk 0:01:54.8]} 32... Bxb2 {[%clk 0:00:25.2]} 33. Qc7+ {[%clk 0:01:41.4]}
33... Qxc7 {[%clk 0:00:24.5]} 34. dxc7 {[%clk 0:01:43.3]} 34... Rc8 {[%clk
0:00:20.9]} 35. Bd8 {[%clk 0:01:34.1]} 35... Be5 {[%clk 0:00:21.7]} 36. f4
{[%clk 0:01:12.8]} 36... b2 {[%clk 0:00:17]} 37. Rf1 {[%clk 0:01:10.6]} 37...
Bxc7 {[%clk 0:00:12.4]} 38. Bxc7 {[%clk 0:01:08.6]} 38... Rxc7 {[%clk
0:00:14.3]} 39. Rb1 {[%clk 0:01:09.4]} 39... Rc2 {[%clk 0:00:15.3]} 40. Kf1
{[%clk 0:01:10.7]} 40... Ng3+ {[%clk 0:00:16.6]} 0-1

[Event "*** Titled Tuesday Blitz"]
[Site "Chess.com"]
[Date "2020.02.04"]
[Round "1"]
[White "jefferyx"]
[Black "messiboca"]
[Result "1-0"]
[WhiteElo "2928"]
[BlackElo "2489"]
[TimeControl "180+2"]
[EndTime "13:07:49 PST"]
[Termination "jefferyx won by resignation"]

1. d4 {[%clk 0:02:58.6]} 1... Nf6 {[%clk 0:03:00.3]} 2. c4 {[%clk 0:02:59]} 2...
e6 {[%clk 0:03:01.2]} 3. Nc3 {[%clk 0:03:00.3]} 3... Bb4 {[%clk 0:03:01.4]} 4.
Nf3 {[%clk 0:03:01.8]} 4... b6 {[%clk 0:02:52.6]} 5. Qc2 {[%clk 0:03:01.2]} 5...
Bb7 {[%clk 0:02:53.4]} 6. a3 {[%clk 0:03:02.3]} 6... Bxc3+ {[%clk 0:02:53.5]} 7.
Qxc3 {[%clk 0:03:04.2]} 7... d6 {[%clk 0:02:51.4]} 8. e3 {[%clk 0:03:05.1]} 8...
Nbd7 {[%clk 0:02:51.9]} 9. Be2 {[%clk 0:03:06.2]} 9... O-O {[%clk 0:02:52.9]}
10. O-O {[%clk 0:03:07.3]} 10... Ne4 {[%clk 0:02:53.8]} 11. Qc2 {[%clk
0:03:08.7]} 11... f5 {[%clk 0:02:55]} 12. Ne1 {[%clk 0:03:10]} 12... Qh4 {[%clk
0:02:54.6]} 13. f3 {[%clk 0:03:11]} 13... Ng5 {[%clk 0:02:55.3]} 14. c5 {[%clk
0:03:12.2]} 14... bxc5 {[%clk 0:02:31.2]} 15. dxc5 {[%clk 0:03:14.1]} 15... Bd5
{[%clk 0:02:19.3]} 16. b4 {[%clk 0:02:28.7]} 16... Rf6 {[%clk 0:02:18.8]} 17. g3
{[%clk 0:02:29.3]} 17... Qh5 {[%clk 0:02:07]} 18. h4 {[%clk 0:01:56.7]} 18...
Nf7 {[%clk 0:01:53]} 19. e4 {[%clk 0:01:53.6]} 19... fxe4 {[%clk 0:01:51.4]} 20.
fxe4 {[%clk 0:01:55.5]} 20... Qg6 {[%clk 0:00:47.4]} 21. Rxf6 {[%clk 0:01:22.4]}
21... Qxg3+ {[%clk 0:00:34.9]} 22. Ng2 {[%clk 0:01:22.7]} 22... Nxf6 {[%clk
0:00:34.3]} 23. exd5 {[%clk 0:01:22.5]} 23... Nxd5 {[%clk 0:00:31.1]} 24. Qd3
{[%clk 0:01:09.6]} 24... Qe5 {[%clk 0:00:27.2]} 25. Ra2 {[%clk 0:01:05.1]} 25...
Nh6 {[%clk 0:00:14]} 26. Bb2 {[%clk 0:01:04.3]} 26... Qf5 {[%clk 0:00:14.9]} 27.
Qxf5 {[%clk 0:01:04.8]} 27... Nxf5 {[%clk 0:00:16.1]} 28. cxd6 {[%clk
0:01:00.9]} 28... cxd6 {[%clk 0:00:15.8]} 29. Ra1 {[%clk 0:01:02.3]} 29... Rf8
{[%clk 0:00:10.7]} 30. Rf1 {[%clk 0:00:57.3]} 30... g6 {[%clk 0:00:11.4]} 31.
Bc4 {[%clk 0:00:57.6]} 31... Nc7 {[%clk 0:00:11]} 32. Rc1 {[%clk 0:00:55.4]}
32... d5 {[%clk 0:00:12.3]} 33. Bd3 {[%clk 0:00:55.7]} 33... Ne8 {[%clk
0:00:12.3]} 34. Be5 {[%clk 0:00:55.5]} 34... Kf7 {[%clk 0:00:12.6]} 35. Rc8
{[%clk 0:00:55]} 35... Ke7 {[%clk 0:00:13.6]} 36. Ra8 {[%clk 0:00:55.6]} 1-0

[Event "*** Titled Tuesday Blitz"]
[Site "Chess.com"]
[Date "2020.02.04"]
[Round "1"]
[White "ruvat"]
[Black "ChessLover0108"]
[Result "0-1"]
[WhiteElo "2379"]
[BlackElo "2723"]
[TimeControl "180+2"]
[EndTime "13:07:50 PST"]
[Termination "ChessLover0108 won by resignation"]

1. d4 {[%clk 0:02:59.8]} 1... d5 {[%clk 0:03:01.2]} 2. c4 {[%clk 0:03:00.1]}
2... e6 {[%clk 0:03:02.6]} 3. Nf3 {[%clk 0:03:01.1]} 3... Nf6 {[%clk 0:03:02.9]}
4. g3 {[%clk 0:03:02.1]} 4... dxc4 {[%clk 0:03:02.1]} 5. Bg2 {[%clk 0:03:02.9]}
5... Bb4+ {[%clk 0:03:03.6]} 6. Bd2 {[%clk 0:03:03.1]} 6... a5 {[%clk
0:03:05.1]} 7. O-O {[%clk 0:03:03.4]} 7... O-O {[%clk 0:03:05.8]} 8. Bg5 {[%clk
0:03:03]} 8... Nc6 {[%clk 0:03:04.8]} 9. Bxf6 {[%clk 0:02:57.1]} 9... Qxf6
{[%clk 0:03:04]} 10. a3 {[%clk 0:02:58]} 10... Bd6 {[%clk 0:03:00.9]} 11. Nc3
{[%clk 0:02:58.5]} 11... e5 {[%clk 0:02:55.7]} 12. d5 {[%clk 0:02:53.4]} 12...
Na7 {[%clk 0:02:52.3]} 13. Nd2 {[%clk 0:02:31]} 13... b5 {[%clk 0:02:38.1]} 14.
a4 {[%clk 0:02:30.9]} 14... Bd7 {[%clk 0:02:29.2]} 15. axb5 {[%clk 0:02:30.4]}
15... Nxb5 {[%clk 0:02:31.1]} 16. Nce4 {[%clk 0:02:26.5]} 16... Qe7 {[%clk
0:02:31.5]} 17. Nxc4 {[%clk 0:02:26]} 17... Bb4 {[%clk 0:02:29.1]} 18. Qc2
{[%clk 0:02:16.2]} 18... Nd6 {[%clk 0:02:00.4]} 19. Ned2 {[%clk 0:02:06.1]}
19... Bb5 {[%clk 0:01:54.3]} 20. Rfc1 {[%clk 0:01:34.6]} 20... Rfb8 {[%clk
0:01:32.6]} 21. e4 {[%clk 0:01:30.6]} 21... h5 {[%clk 0:01:21.5]} 22. b3 {[%clk
0:01:27.4]} 22... h4 {[%clk 0:01:18.7]} 23. Bf1 {[%clk 0:01:21.9]} 23... hxg3
{[%clk 0:01:17.8]} 24. hxg3 {[%clk 0:01:22]} 24... g6 {[%clk 0:01:13.9]} 25. Bd3
{[%clk 0:01:17.5]} 25... Kg7 {[%clk 0:01:12.1]} 26. Kg2 {[%clk 0:01:18.5]} 26...
Bxc4 {[%clk 0:01:07.8]} 27. Nxc4 {[%clk 0:01:11.5]} 27... Nb5 {[%clk 0:01:08.1]}
28. Ne3 {[%clk 0:00:54.1]} 28... Nd4 {[%clk 0:01:01.9]} 29. Qd1 {[%clk 0:00:55]}
29... Rh8 {[%clk 0:00:55.7]} 30. Rab1 {[%clk 0:00:47.4]} 30... Rh7 {[%clk
0:00:49.1]} 31. Qg4 {[%clk 0:00:44.7]} 31... Rah8 {[%clk 0:00:45.4]} 32. Nf5+
{[%clk 0:00:40.7]} 32... Kf8 {[%clk 0:00:35.7]} 33. Nxd4 {[%clk 0:00:29.3]}
33... exd4 {[%clk 0:00:37.6]} 34. Qf4 {[%clk 0:00:24]} 34... Rh2+ {[%clk
0:00:36.7]} 35. Kf3 {[%clk 0:00:24.1]} 35... Bd6 {[%clk 0:00:34.3]} 36. Qg4
{[%clk 0:00:25.2]} 36... Qf6+ {[%clk 0:00:34.9]} 37. Ke2 {[%clk 0:00:25]} 37...
Qxf2+ {[%clk 0:00:36.2]} 0-1

[Event "*** Titled Tuesday Blitz"]
[Site "Chess.com"]
[Date "2020.02.04"]
[Round "1"]
[White "SoltaniciR"]
[Black "hansen"]
[Result "1-0"]
[WhiteElo "2494"]
[BlackElo "2885"]
[TimeControl "180+2"]
[EndTime "13:07:58 PST"]
[Termination "SoltaniciR won by resignation"]

1. e4 {[%clk 0:03:01.3]} 1... c5 {[%clk 0:02:56.6]} 2. Nf3 {[%clk 0:03:01.4]}
2... e6 {[%clk 0:02:57.9]} 3. d4 {[%clk 0:03:01.9]} 3... cxd4 {[%clk 0:02:59]}
4. Nxd4 {[%clk 0:03:03.5]} 4... a6 {[%clk 0:03:00]} 5. Nc3 {[%clk 0:03:04.1]}
5... Qc7 {[%clk 0:02:58.5]} 6. Bd3 {[%clk 0:03:04.9]} 6... Nf6 {[%clk
0:02:57.5]} 7. f4 {[%clk 0:03:05.7]} 7... d6 {[%clk 0:02:58.5]} 8. Qf3 {[%clk
0:03:06.6]} 8... Nbd7 {[%clk 0:02:59.2]} 9. g4 {[%clk 0:03:06.7]} 9... Nc5
{[%clk 0:03:00.2]} 10. Be3 {[%clk 0:03:06.6]} 10... b5 {[%clk 0:02:59.4]} 11. a3
{[%clk 0:02:58.1]} 11... Bb7 {[%clk 0:03:00.1]} 12. g5 {[%clk 0:02:41]} 12...
Nfd7 {[%clk 0:03:00.2]} 13. O-O-O {[%clk 0:02:42]} 13... Rc8 {[%clk 0:03:00]}
14. Kb1 {[%clk 0:02:42.5]} 14... Be7 {[%clk 0:02:46.1]} 15. h4 {[%clk
0:02:43.1]} 15... Nb6 {[%clk 0:02:37.7]} 16. h5 {[%clk 0:02:43]} 16... Nca4
{[%clk 0:02:31.1]} 17. Nxa4 {[%clk 0:02:33]} 17... Nxa4 {[%clk 0:02:31.4]} 18.
g6 {[%clk 0:02:23.5]} 18... Bf6 {[%clk 0:02:31.4]} 19. gxf7+ {[%clk 0:02:14.3]}
19... Kxf7 {[%clk 0:02:18]} 20. Qg4 {[%clk 0:02:14]} 20... Rhe8 {[%clk
0:02:17.8]} 21. e5 {[%clk 0:01:33.4]} 21... dxe5 {[%clk 0:02:18.8]} 22. fxe5
{[%clk 0:01:33.9]} 22... Qxe5 {[%clk 0:02:20.2]} 23. Rhe1 {[%clk 0:01:28.1]}
23... Nxb2 {[%clk 0:01:10.4]} 24. Kxb2 {[%clk 0:01:23.2]} 24... Qc5 {[%clk
0:01:02.5]} 25. Rf1 {[%clk 0:00:59.1]} 25... Bd5 {[%clk 0:00:44.2]} 26. h6
{[%clk 0:00:27.6]} 26... Ke7 {[%clk 0:00:37.8]} 27. Rxf6 {[%clk 0:00:21.4]}
27... gxf6 {[%clk 0:00:21.7]} 28. Qg7+ {[%clk 0:00:21.5]} 28... Kd8 {[%clk
0:00:23.3]} 29. Nxe6+ {[%clk 0:00:20.4]} 29... Rxe6 {[%clk 0:00:12.2]} 30. Bxc5
{[%clk 0:00:21.3]} 30... Rxc5 {[%clk 0:00:14.1]} 31. Bxh7 {[%clk 0:00:20.5]}
31... Rc7 {[%clk 0:00:07.3]} 32. Rxd5+ {[%clk 0:00:19.9]} 1-0

[Event "*** Titled Tuesday Blitz"]
[Site "Chess.com"]
[Date "2020.02.04"]
[Round "1"]
[White "Lovkov_Roman"]
[Black "parmupill123"]
[Result "1-0"]
[WhiteElo "2711"]
[BlackElo "2379"]
[TimeControl "180+2"]
[EndTime "13:08:01 PST"]
[Termination "Lovkov_Roman won by resignation"]

1. e4 {[%clk 0:02:53.9]} 1... e6 {[%clk 0:02:58.8]} 2. d4 {[%clk 0:02:54.7]}
2... d5 {[%clk 0:02:58.4]} 3. exd5 {[%clk 0:02:52.8]} 3... exd5 {[%clk
0:02:59.2]} 4. Nf3 {[%clk 0:02:54.7]} 4... Nf6 {[%clk 0:03:00]} 5. c4 {[%clk
0:02:55.5]} 5... Be7 {[%clk 0:02:59.9]} 6. Nc3 {[%clk 0:02:55.8]} 6... O-O
{[%clk 0:03:00.2]} 7. cxd5 {[%clk 0:02:54.1]} 7... Nxd5 {[%clk 0:03:00.7]} 8.
Bc4 {[%clk 0:02:55.3]} 8... c6 {[%clk 0:02:49.8]} 9. h3 {[%clk 0:02:52.2]} 9...
Bf6 {[%clk 0:02:42.4]} 10. O-O {[%clk 0:02:52.6]} 10... Be6 {[%clk 0:02:42]} 11.
Ne4 {[%clk 0:02:50.9]} 11... Be7 {[%clk 0:02:39.7]} 12. Bb3 {[%clk 0:02:47.8]}
12... Nd7 {[%clk 0:02:38.2]} 13. Re1 {[%clk 0:02:43.1]} 13... h6 {[%clk
0:02:35.5]} 14. Ne5 {[%clk 0:02:28.2]} 14... Nc7 {[%clk 0:02:23.5]} 15. Qf3
{[%clk 0:02:17.2]} 15... Bxb3 {[%clk 0:02:12.4]} 16. Qxb3 {[%clk 0:02:11.5]}
16... Nb6 {[%clk 0:02:11.6]} 17. Nc5 {[%clk 0:01:43]} 17... Rb8 {[%clk
0:02:04.1]} 18. Nxb7 {[%clk 0:01:37.1]} 18... Qe8 {[%clk 0:01:26.7]} 19. Na5
{[%clk 0:01:32.2]} 19... Nbd5 {[%clk 0:01:18.6]} 20. Qf3 {[%clk 0:01:31.1]}
20... Nb4 {[%clk 0:01:05.6]} 21. Nexc6 {[%clk 0:01:27.5]} 21... Ne6 {[%clk
0:01:02.9]} 22. Re2 {[%clk 0:00:58.1]} 22... Rb5 {[%clk 0:00:56.2]} 23. a3
{[%clk 0:00:45.7]} 23... Nxd4 {[%clk 0:00:20.4]} 24. Nxd4 {[%clk 0:00:31.5]}
24... Rxa5 {[%clk 0:00:21.6]} 25. Bd2 {[%clk 0:00:22]} 25... Qd7 {[%clk
0:00:14.7]} 26. Bc3 {[%clk 0:00:17]} 26... Bc5 {[%clk 0:00:11.8]} 27. Rd1 {[%clk
0:00:17.5]} 27... Bxd4 {[%clk 0:00:08.2]} 28. Rxd4 {[%clk 0:00:19.4]} 28... Rd5
{[%clk 0:00:07.5]} 29. Rxb4 {[%clk 0:00:20]} 29... Rd1+ {[%clk 0:00:08.1]} 30.
Kh2 {[%clk 0:00:19.8]} 30... Qc7+ {[%clk 0:00:08.4]} 31. Qg3 {[%clk 0:00:19.5]}
1-0

[Event "*** Titled Tuesday Blitz"]
[Site "Chess.com"]
[Date "2020.02.04"]
[Round "1"]
[White "dragos420"]
[Black "GadimbayliA"]
[Result "0-1"]
[WhiteElo "2482"]
[BlackElo "2908"]
[TimeControl "180+2"]
[EndTime "13:08:15 PST"]
[Termination "GadimbayliA won by resignation"]

1. e3 {[%clk 0:03:00.8]} 1... Nf6 {[%clk 0:02:58.4]} 2. Nf3 {[%clk 0:03:02.2]}
2... b6 {[%clk 0:02:57.9]} 3. b3 {[%clk 0:03:03.8]} 3... Bb7 {[%clk 0:02:59.3]}
4. Bb2 {[%clk 0:03:05.4]} 4... e6 {[%clk 0:03:00.8]} 5. d4 {[%clk 0:03:06]} 5...
Be7 {[%clk 0:03:02.1]} 6. Bd3 {[%clk 0:03:07.2]} 6... O-O {[%clk 0:03:02.2]} 7.
O-O {[%clk 0:03:08.8]} 7... d6 {[%clk 0:03:01.9]} 8. c4 {[%clk 0:03:10]} 8...
Ne4 {[%clk 0:02:56.3]} 9. Nc3 {[%clk 0:03:01.6]} 9... f5 {[%clk 0:02:56.5]} 10.
Nd2 {[%clk 0:02:57.5]} 10... Nxc3 {[%clk 0:02:43.3]} 11. Bxc3 {[%clk 0:02:58.3]}
11... Bf6 {[%clk 0:02:41.9]} 12. Rc1 {[%clk 0:02:51.3]} 12... Nd7 {[%clk
0:02:40.5]} 13. e4 {[%clk 0:02:43.9]} 13... c5 {[%clk 0:02:40.9]} 14. exf5
{[%clk 0:02:40.1]} 14... cxd4 {[%clk 0:02:38.8]} 15. Bb4 {[%clk 0:02:39.8]}
15... Nc5 {[%clk 0:02:25.6]} 16. Bxc5 {[%clk 0:02:40.2]} 16... dxc5 {[%clk
0:02:27.5]} 17. fxe6 {[%clk 0:02:41.8]} 17... Qd6 {[%clk 0:02:22.7]} 18. Re1
{[%clk 0:02:29.4]} 18... Rae8 {[%clk 0:02:15.2]} 19. Qg4 {[%clk 0:02:12.3]}
19... g6 {[%clk 0:01:20.9]} 20. h4 {[%clk 0:01:44.8]} 20... Bc8 {[%clk
0:00:53.2]} 21. h5 {[%clk 0:00:31.8]} 21... Bxe6 {[%clk 0:00:52.7]} 22. Qd1
{[%clk 0:00:31.3]} 22... Bg5 {[%clk 0:00:25.3]} 23. Ne4 {[%clk 0:00:26.8]} 23...
Qf4 {[%clk 0:00:24.5]} 24. Nxg5 {[%clk 0:00:23.6]} 24... Qxf2+ {[%clk
0:00:18.8]} 25. Kh1 {[%clk 0:00:23.2]} 25... Qh4+ {[%clk 0:00:19.8]} 26. Kg1
{[%clk 0:00:13.1]} 26... Qxg5 {[%clk 0:00:20.4]} 27. hxg6 {[%clk 0:00:15]} 27...
hxg6 {[%clk 0:00:20.7]} 28. Rc2 {[%clk 0:00:14.3]} 28... Bg4 {[%clk 0:00:20.9]}
29. Qc1 {[%clk 0:00:14.4]} 29... Qh4 {[%clk 0:00:14.2]} 30. Rxe8 {[%clk
0:00:09.5]} 30... Rxe8 {[%clk 0:00:16.1]} 31. Bf1 {[%clk 0:00:10.8]} 31... Kg7
{[%clk 0:00:13.5]} 32. Rf2 {[%clk 0:00:11.7]} 32... Rh8 {[%clk 0:00:14]} 0-1

[Event "*** Titled Tuesday Blitz"]
[Site "Chess.com"]
[Date "2020.02.04"]
[Round "1"]
[White "volcanoexplorer"]
[Black "semchik73"]
[Result "1-0"]
[WhiteElo "2625"]
[BlackElo "2293"]
[TimeControl "180+2"]
[EndTime "13:08:19 PST"]
[Termination "volcanoexplorer won by resignation"]

1. e4 {[%clk 0:03:01.9]} 1... Nf6 {[%clk 0:02:59.4]} 2. e5 {[%clk 0:03:01.9]}
2... Nd5 {[%clk 0:03:00.5]} 3. d4 {[%clk 0:02:55.5]} 3... d6 {[%clk 0:03:01.4]}
4. c4 {[%clk 0:02:56.8]} 4... Nb6 {[%clk 0:03:02]} 5. exd6 {[%clk 0:02:45.6]}
5... cxd6 {[%clk 0:03:02.9]} 6. Nc3 {[%clk 0:02:44.8]} 6... g6 {[%clk 0:03:04]}
7. Be3 {[%clk 0:02:44.4]} 7... Bg7 {[%clk 0:03:05.2]} 8. Rc1 {[%clk 0:02:45.6]}
8... O-O {[%clk 0:03:05.9]} 9. g3 {[%clk 0:02:43.9]} 9... Nc6 {[%clk 0:03:03.8]}
10. b3 {[%clk 0:02:44]} 10... e5 {[%clk 0:03:02.9]} 11. dxe5 {[%clk 0:02:43.4]}
11... dxe5 {[%clk 0:03:03.3]} 12. Qxd8 {[%clk 0:02:39.6]} 12... Rxd8 {[%clk
0:03:03.8]} 13. Bg2 {[%clk 0:02:32]} 13... Nd4 {[%clk 0:03:03.7]} 14. Nge2
{[%clk 0:02:22]} 14... Rb8 {[%clk 0:02:57.6]} 15. O-O {[%clk 0:02:05.7]} 15...
Bf5 {[%clk 0:02:57.9]} 16. f4 {[%clk 0:01:54.5]} 16... Bd3 {[%clk 0:02:45.6]}
17. Kf2 {[%clk 0:01:50.9]} 17... Nxe2 {[%clk 0:02:42]} 18. Nxe2 {[%clk
0:01:50.9]} 18... exf4 {[%clk 0:02:43.4]} 19. Bxf4 {[%clk 0:01:50.2]} 19... Re8
{[%clk 0:02:39.1]} 20. Rfe1 {[%clk 0:01:30.9]} 20... Rbd8 {[%clk 0:02:37.4]} 21.
Bxb7 {[%clk 0:01:27.8]} 21... Re7 {[%clk 0:02:19.7]} 22. Bf3 {[%clk 0:01:23.5]}
22... Rde8 {[%clk 0:02:16.4]} 23. Rcd1 {[%clk 0:01:24.4]} 23... Bc2 {[%clk
0:02:13.6]} 24. Rd2 {[%clk 0:01:17.8]} 24... Bf5 {[%clk 0:02:14.3]} 25. Red1
{[%clk 0:01:18.7]} 25... h6 {[%clk 0:02:09.9]} 26. Nd4 {[%clk 0:01:17.9]} 26...
Bxd4+ {[%clk 0:01:58.9]} 27. Rxd4 {[%clk 0:01:18.6]} 27... g5 {[%clk 0:02:00.4]}
28. Bd6 {[%clk 0:01:13.3]} 28... Re3 {[%clk 0:01:58.8]} 29. c5 {[%clk 0:01:07]}
29... Nc8 {[%clk 0:01:59.6]} 30. c6 {[%clk 0:00:55.5]} 30... Nxd6 {[%clk
0:01:51.1]} 31. Rxd6 {[%clk 0:00:57.4]} 31... g4 {[%clk 0:01:52.4]} 32. Bg2
{[%clk 0:00:37.1]} 32... Re2+ {[%clk 0:01:53.4]} 33. Kf1 {[%clk 0:00:38.4]}
33... Rc2 {[%clk 0:01:51.1]} 34. Rd8 {[%clk 0:00:35.9]} 34... Rxd8 {[%clk
0:01:51.7]} 35. Rxd8+ {[%clk 0:00:36.8]} 35... Kg7 {[%clk 0:01:53.2]} 36. Bd5
{[%clk 0:00:32.7]} 36... Bd3+ {[%clk 0:01:52.5]} 37. Ke1 {[%clk 0:00:31.8]}
37... Bf5 {[%clk 0:01:48.2]} 38. Rd7 {[%clk 0:00:30.5]} 38... Kh8 {[%clk
0:01:25.4]} 39. Rxf7 {[%clk 0:00:28.6]} 39... Bg6 {[%clk 0:01:24.6]} 40. Rxa7
{[%clk 0:00:26.8]} 40... Rc5 {[%clk 0:01:25.4]} 41. c7 {[%clk 0:00:21]} 41...
Bf5 {[%clk 0:01:24.3]} 42. Bc4 {[%clk 0:00:16.9]} 42... h5 {[%clk 0:01:22.5]}
43. Kd2 {[%clk 0:00:18.1]} 43... h4 {[%clk 0:01:22.4]} 44. gxh4 {[%clk
0:00:19.5]} 44... Bd7 {[%clk 0:01:23.5]} 45. Kc3 {[%clk 0:00:19.9]} 45... Rh5
{[%clk 0:01:23.8]} 46. Ra8+ {[%clk 0:00:20]} 46... Kg7 {[%clk 0:01:25.2]} 47.
c8=Q {[%clk 0:00:18.5]} 47... Bxc8 {[%clk 0:01:26.5]} 48. Rxc8 {[%clk
0:00:20.4]} 48... Rxh4 {[%clk 0:01:27.5]} 49. a4 {[%clk 0:00:22]} 49... Rxh2
{[%clk 0:01:28.2]} 50. Rg8+ {[%clk 0:00:22.9]} 50... Kf6 {[%clk 0:01:29.3]} 51.
Rxg4 {[%clk 0:00:24.8]} 51... Rh3+ {[%clk 0:01:30.8]} 52. Kb4 {[%clk 0:00:25.9]}
1-0

[Event "*** Titled Tuesday Blitz"]
[Site "Chess.com"]
[Date "2020.02.04"]
[Round "1"]
[White "Gentlejimmy7"]
[Black "GoingKronos"]
[Result "0-1"]
[WhiteElo "2657"]
[BlackElo "2435"]
[TimeControl "180+2"]
[EndTime "13:08:22 PST"]
[Termination "GoingKronos won by resignation"]

1. d4 {[%clk 0:02:47.1]} 1... e6 {[%clk 0:02:59.5]} 2. Nf3 {[%clk 0:02:49]} 2...
Nf6 {[%clk 0:02:59.3]} 3. g3 {[%clk 0:02:44.5]} 3... b6 {[%clk 0:02:57.2]} 4.
Bg2 {[%clk 0:02:45.1]} 4... Bb7 {[%clk 0:02:57.8]} 5. O-O {[%clk 0:02:46.9]}
5... Be7 {[%clk 0:02:54.3]} 6. c4 {[%clk 0:02:46.8]} 6... O-O {[%clk 0:02:53.3]}
7. d5 {[%clk 0:02:40.7]} 7... Na6 {[%clk 0:02:49.2]} 8. Nc3 {[%clk 0:02:38.3]}
8... Bb4 {[%clk 0:02:49]} 9. Nh4 {[%clk 0:02:22.6]} 9... Bxc3 {[%clk 0:02:34.9]}
10. bxc3 {[%clk 0:02:19.9]} 10... Nc5 {[%clk 0:02:35.6]} 11. Ba3 {[%clk
0:02:12.6]} 11... Rb8 {[%clk 0:02:26.1]} 12. Rb1 {[%clk 0:02:03.9]} 12... Ba6
{[%clk 0:02:16.6]} 13. Qd4 {[%clk 0:01:56]} 13... d6 {[%clk 0:02:02]} 14. Rb4
{[%clk 0:01:41.1]} 14... exd5 {[%clk 0:01:50.2]} 15. cxd5 {[%clk 0:01:41.5]}
15... Bxe2 {[%clk 0:01:51]} 16. Re1 {[%clk 0:01:41.7]} 16... Bg4 {[%clk
0:01:48.7]} 17. Bc1 {[%clk 0:01:36.7]} 17... Re8 {[%clk 0:01:41.4]} 18. Rxe8+
{[%clk 0:01:37]} 18... Qxe8 {[%clk 0:01:41]} 19. Be3 {[%clk 0:01:16.9]} 19...
Qd7 {[%clk 0:01:16.8]} 20. Rb1 {[%clk 0:01:17.6]} 20... Bh3 {[%clk 0:01:09.3]}
21. Bf3 {[%clk 0:01:17]} 21... Re8 {[%clk 0:01:08.7]} 22. Bg5 {[%clk 0:01:17.4]}
22... Nfe4 {[%clk 0:01:05]} 23. Re1 {[%clk 0:01:15.8]} 23... Nxg5 {[%clk
0:01:01.9]} 24. Rxe8+ {[%clk 0:01:16]} 24... Qxe8 {[%clk 0:01:02.9]} 25. Qd2
{[%clk 0:01:03.9]} 25... Nxf3+ {[%clk 0:00:59.3]} 26. Nxf3 {[%clk 0:01:05.8]}
26... Qe4 {[%clk 0:00:57.3]} 27. Ne1 {[%clk 0:01:06.7]} 27... h6 {[%clk
0:00:53.8]} 28. f3 {[%clk 0:01:07.9]} 28... Qe5 {[%clk 0:00:51.1]} 29. Kf2
{[%clk 0:01:07.6]} 29... Bd7 {[%clk 0:00:47.2]} 30. Nc2 {[%clk 0:01:08.4]} 30...
a5 {[%clk 0:00:39.3]} 31. Nd4 {[%clk 0:01:09.7]} 31... g6 {[%clk 0:00:37.9]} 32.
c4 {[%clk 0:01:09.3]} 32... Kg7 {[%clk 0:00:38.1]} 33. Qc3 {[%clk 0:01:10.3]}
33... h5 {[%clk 0:00:36.1]} 34. h4 {[%clk 0:01:11.1]} 34... Qf6 {[%clk
0:00:36.1]} 35. Ke3 {[%clk 0:01:10.9]} 35... Kh7 {[%clk 0:00:34.7]} 36. Qd2
{[%clk 0:01:10.6]} 36... Qe5+ {[%clk 0:00:34.7]} 37. Kf2 {[%clk 0:01:11.3]}
37... Bf5 {[%clk 0:00:35.4]} 38. Ne2 {[%clk 0:01:09.3]} 38... Nd3+ {[%clk
0:00:35]} 39. Kg2 {[%clk 0:01:09.9]} 39... Nc5 {[%clk 0:00:34.9]} 40. Kf2 {[%clk
0:01:09.6]} 40... Bd3 {[%clk 0:00:35.3]} 41. Nf4 {[%clk 0:01:05.3]} 41... Bxc4
{[%clk 0:00:35.5]} 42. Qc2 {[%clk 0:01:06.1]} 42... Bxd5 {[%clk 0:00:34.8]} 43.
a3 {[%clk 0:01:05.3]} 43... Be6 {[%clk 0:00:35.3]} 44. Qd2 {[%clk 0:01:04]}
44... Bf5 {[%clk 0:00:34.7]} 45. Nd5 {[%clk 0:00:56.3]} 45... Nd3+ {[%clk
0:00:33.5]} 46. Kg2 {[%clk 0:00:54.4]} 46... Qxd5 {[%clk 0:00:34.4]} 47. Qc3
{[%clk 0:00:55.5]} 47... c5 {[%clk 0:00:32.5]} 48. Qf6 {[%clk 0:00:55.7]} 48...
Qe6 {[%clk 0:00:32.9]} 49. Qd8 {[%clk 0:00:55.3]} 49... Ne5 {[%clk 0:00:32.7]}
50. Qg8+ {[%clk 0:00:56.3]} 50... Kxg8 {[%clk 0:00:32.7]} 0-1